fUSD/lending_fUSD_20251210
["ID","MTS","AMOUNT","RATE_DAILY","PERIOD"]
[398088298,1765363862138,-500.0,0.00014246,2]
[398088299,1765363862147,-500.0,0.00014246,2]
[398088300,1765363862157,-500.0,0.00014246,2]
[398088301,1765363862167,-500.0,0.00014246,2]
[398088302,1765363862176,-601.0,0.00014246,2]
[398088303,1765363862185,-500.0,0.00014246,2]
[398088304,1765363862195,-500.0,0.00014246,2]
[398088305,1765363862204,-619.05,0.00014246,2]
[398088306,1765363862214,-500.0,0.00014246,2]
[398088307,1765363862224,-500.0,0.00014246,2]
[398088308,1765363862234,-500.0,0.00014246,2]
[398088309,1765363862244,-500.0,0.00014246,2]
[398088310,1765363862254,-508.97914009,0.00014246,2]
[398088311,1765363862263,-718.66,0.00014246,2]
[398088312,1765363862272,-500.0,0.00014246,2]
[398088313,1765363862281,-500.0,0.00014246,2]
[398088314,1765363862291,-575.76,0.00014246,2]
[398088315,1765363862300,-522.38,0.00014246,2]
[398088316,1765363862309,-500.0,0.00014246,2]
[398088317,1765363862318,-500.0,0.00014246,2]
[398088318,1765363862327,-500.0,0.00014246,2]
[398088319,1765363862336,-500.0,0.00014246,2]
[398088320,1765363862345,-500.0,0.00014246,2]
[398088321,1765363862355,-500.0,0.00014246,2]
[398088322,1765363862363,-528.5,0.00014246,2]
[398088323,1765363862372,-500.0,0.00014246,2]
[398088324,1765363862381,-500.0,0.00014246,2]
[398088325,1765363862390,-500.0,0.00014246,2]
[398088326,1765363862400,-500.0,0.00014246,2]
[398088327,1765363862409,-500.0,0.00014246,2]
[398088328,1765363862418,-500.0,0.00014246,2]
[398088329,1765363862427,-500.0,0.00014246,2]
[398088330,1765363862436,-582.05,0.00014246,2]
[398088331,1765363862445,-500.0,0.00014246,2]
[398088332,1765363862454,-500.0,0.00014246,2]
[398088333,1765363862463,-1023.47,0.00014246,2]
[398088334,1765363862472,-624.49975685,0.00014246,2]
[398088335,1765363862481,-500.0,0.00014246,2]
[398088336,1765363862490,-500.0,0.00014246,2]
[398088337,1765363862499,-500.0,0.00014246,2]
[398088338,1765363862511,-2989.18,0.00014246,2]
[398088339,1765363862520,-500.0,0.00014246,2]
[398088340,1765363862529,-500.0,0.00014246,2]
[398088341,1765363862537,-555.46,0.00014246,2]
[398088342,1765363862546,-500.0,0.00014246,2]
[398088343,1765363862555,-319.11788812,0.00014246,2]
[398088344,1765363862564,-500.0,0.00014246,2]
[398088345,1765363862573,-1304.2,0.00014246,2]
[398088346,1765363862582,-500.0,0.00014246,2]
[398088347,1765363862591,-729.87,0.00014246,2]
[398088348,1765363862600,-2869.58,0.00014246,2]
[398088349,1765363862609,-500.0,0.00014246,2]
[398088350,1765363862618,-500.0,0.00014246,2]
[398088351,1765363862626,-500.0,0.00014246,2]
[398088352,1765363862635,-658.56,0.00014246,2]
[398088353,1765363862645,-500.0,0.00014246,2]
[398088354,1765363862654,-501.94,0.00014246,2]
[398088355,1765363862663,-500.0,0.00014246,2]
[398088356,1765363862679,-500.0,0.00014246,2]
[398088357,1765363862688,-500.0,0.00014246,2]
[398088358,1765363862698,-151.0,0.00014246,2]
[398088359,1765363862707,-500.0,0.00014246,2]
[398088360,1765363862715,-151.0,0.00014246,2]
[398088361,1765363862725,-500.0,0.00014246,2]
[398088362,1765363862734,-548.02,0.00014246,2]
[398088363,1765363862743,-500.0,0.00014246,2]
[398088364,1765363862752,-500.0,0.00014246,2]
[398088365,1765363862762,-500.0,0.00014246,2]
[398088366,1765363862771,-151.0,0.00014246,2]
[398088367,1765363862780,-500.0,0.00014246,2]
[398088368,1765363862789,-500.0,0.00014246,2]
[398088369,1765363862798,-500.0,0.00014246,2]
[398088370,1765363862807,-500.0,0.00014246,2]
[398088371,1765363862816,-970.77,0.00014246,2]
[398088372,1765363862825,-500.0,0.00014246,2]
[398088373,1765363862834,-1025.9,0.00014246,2]
[398088374,1765363862844,-500.0,0.00014246,2]
[398088375,1765363862853,-500.0,0.00014246,2]
[398088376,1765363862862,-540.25,0.00014246,2]
[398088377,1765363862873,-500.0,0.00014246,2]
[398088378,1765363862883,-555.46,0.00014246,2]
[398088379,1765363862893,-558.94165725,0.00014246,2]
[398088380,1765363862902,-500.0,0.00014246,2]
[398088381,1765363862912,-832.02,0.00014246,2]
[398088382,1765363862921,-500.0,0.00014246,2]
[398088383,1765363862930,-500.0,0.00014246,2]
[398088384,1765363862939,-635.2,0.00014246,2]
[398088385,1765363862949,-500.0,0.00014246,2]
[398088386,1765363862962,-500.0,0.00014246,2]
[398088387,1765363862971,-515.11,0.00014246,2]
[398088388,1765363862980,-500.0,0.00014246,2]
[398088389,1765363862989,-520.93,0.00014246,2]
[398088390,1765363862999,-557.58,0.00014246,2]
[398088391,1765363863008,-695.06,0.00014246,2]
[398088392,1765363863017,-500.0,0.00014246,2]
[398088393,1765363863027,-500.0,0.00014246,2]
[398088394,1765363863038,-500.0,0.00014246,2]
[398088395,1765363863047,-762.87,0.00014246,2]
[398088396,1765363863056,-2138.7,0.00014246,2]
[398088397,1765363863065,-500.0,0.00014246,2]
[398088398,1765363863075,-765.27,0.00014246,2]
[398088399,1765363863084,-1364.77,0.00014246,2]
[398088400,1765363863093,-572.05,0.00014246,2]
[398088401,1765363863103,-500.0,0.00014246,2]
[398088402,1765363863113,-500.0,0.00014246,2]
[398088403,1765363863122,-500.0,0.00014246,2]
[398088404,1765363863131,-500.0,0.00014246,2]
[398088405,1765363863141,-516.6,0.00014246,2]
[398088406,1765363863150,-500.0,0.00014246,2]
[398088407,1765363863159,-951.41,0.00014246,2]
[398088408,1765363863168,-679.67,0.00014246,2]
[398088409,1765363863178,-500.0,0.00014246,2]
[398088410,1765363863187,-718.05,0.00014246,2]
[398088411,1765363863196,-500.0,0.00014246,2]
[398088412,1765363863205,-729.92,0.00014246,2]
[398088413,1765363863214,-500.0,0.00014246,2]
[398088414,1765363863223,-531.49,0.00014246,2]
[398088415,1765363863231,-500.0,0.00014246,2]
[398088416,1765363863240,-539.19,0.00014246,2]
[398088417,1765363863248,-579.21978128,0.00014246,2]
[398088418,1765363863257,-500.0,0.00014246,2]
[398088419,1765363863264,-503.74,0.00014246,2]
[398088420,1765363863272,-641.54,0.00014246,2]
[398088421,1765363863281,-397.53985836,0.00014246,2]
[398088422,1765363863290,-1067.97,0.00014246,2]
[398088423,1765363863300,-500.0,0.00014246,2]
[398088424,1765363863309,-500.0,0.00014246,2]
[398088425,1765363863318,-2594.14,0.00014246,2]
[398088426,1765363863328,-500.0,0.00014246,2]
[398088427,1765363863337,-500.0,0.00014246,2]
[398088428,1765363863346,-500.0,0.00014246,2]
[398088429,1765363863355,-500.0,0.00014246,2]
[398088430,1765363863364,-500.0,0.00014246,2]
[398088431,1765363863373,-500.0,0.00014246,2]
[398088432,1765363863382,-500.0,0.00014246,2]
[398088433,1765363863391,-545.18,0.00014246,2]
[398088434,1765363863401,-1000.0,0.00014246,2]
[398088435,1765363863410,-500.0,0.00014246,2]
[398088436,1765363863419,-1366.9,0.00014246,2]
[398088437,1765363863428,-500.0,0.00014246,2]
[398088438,1765363863438,-500.0,0.00014246,2]
[398088439,1765363863447,-780.91,0.00014246,2]
[398088440,1765363863456,-500.0,0.00014246,2]
[398088441,1765363863466,-904.37,0.00014246,2]
[398088442,1765363863475,-500.0,0.00014246,2]
[398088443,1765363863484,-500.0,0.00014246,2]
[398088444,1765363863494,-500.0,0.00014246,2]
[398088445,1765363863503,-1011.3,0.00014246,2]
[398088446,1765363863512,-1977.85,0.00014246,2]
[398088447,1765363863521,-500.0,0.00014246,2]
[398088448,1765363863530,-500.0,0.00014246,2]
[398088449,1765363863539,-674.04,0.00014246,2]
[398088450,1765363863549,-530.92,0.00014246,2]
[398088451,1765363863558,-500.0,0.00014246,2]
[398088452,1765363863567,-515.73,0.00014246,2]
[398088453,1765363863576,-500.0,0.00014246,2]
[398088454,1765363863585,-500.0,0.00014246,2]
[398088455,1765363863594,-500.0,0.00014246,2]
[398088456,1765363863605,-500.0,0.00014246,2]
[398088457,1765363863614,-618.95,0.00014246,2]
[398088458,1765363863623,-746.65,0.00014246,2]
[398088459,1765363863633,-500.0,0.00014246,2]
[398088460,1765363863643,-500.0,0.00014246,2]
[398088461,1765363863652,-500.0,0.00014246,2]
[398088462,1765363863662,-500.0,0.00014246,2]
[398088463,1765363863671,-562.39,0.00014246,2]
[398088464,1765363863680,-514.85,0.00014246,2]
[398088465,1765363863690,-573.11335561,0.00014246,2]
[398088466,1765363863700,-500.0,0.00014246,2]
[398088467,1765363863710,-594.84,0.00014246,2]
[398088468,1765363863720,-2704.59,0.00014246,2]
[398088469,1765363863730,-500.0,0.00014246,2]
[398088470,1765363863740,-1311.95,0.00014246,2]
[398088471,1765363863750,-672.92,0.00014246,2]
[398088472,1765363863759,-500.0,0.00014246,2]
[398088473,1765363863769,-500.0,0.00014246,2]
[398088474,1765363863779,-500.0,0.00014246,2]
[398088475,1765363863789,-500.0,0.00014246,2]
[398088476,1765363863799,-536.09,0.00014246,2]
[398088477,1765363863809,-636.09,0.00014246,2]
[398088478,1765363863819,-500.0,0.00014246,2]
[398088479,1765363863829,-500.0,0.00014246,2]
[398088480,1765363863839,-518.62,0.00014246,2]
[398088481,1765363863849,-500.0,0.00014246,2]
[398088482,1765363863859,-500.0,0.00014246,2]
[398088483,1765363863869,-954.03,0.00014246,2]
[398088484,1765363863879,-2690.76,0.00014246,2]
[398088485,1765363863889,-500.0,0.00014246,2]
[398088486,1765363863899,-500.0,0.00014246,2]
[398088487,1765363863909,-500.0,0.00014246,2]
[398088488,1765363863919,-500.0,0.00014246,2]
[398088489,1765363863930,-539.25,0.00014246,2]
[398088490,1765363863942,-500.0,0.00014246,2]
[398088491,1765363863953,-500.0,0.00014246,2]
[398088492,1765363863966,-669.46,0.00014246,2]
[398088493,1765363863977,-500.0,0.00014246,2]
[398088494,1765363863988,-500.0,0.00014246,2]
[398088495,1765363863999,-500.0,0.00014246,2]
[398088496,1765363864009,-500.0,0.00014246,2]
[398088497,1765363864019,-592.85011524,0.00014246,2]
[398088498,1765363864029,-456.25378788,0.00014246,2]
[398088499,1765363864039,-500.0,0.00014246,2]
[398088500,1765363864049,-500.0,0.00014246,2]
[398088501,1765363864060,-500.0,0.00014246,2]
[398088502,1765363864071,-522.23,0.00014246,2]
[398088503,1765363864082,-633.04,0.00014246,2]
[398088504,1765363864092,-500.0,0.00014246,2]
[398088505,1765363864102,-854.51,0.00014246,2]
[398088506,1765363864112,-500.0,0.00014246,2]
[398088507,1765363864122,-500.0,0.00014246,2]
[398088508,1765363864131,-166.66,0.00014247,2]
[398088509,1765363864140,-6368.06068207,0.00014329,2]
[398088510,1765363864150,-150.0,0.00014349,2]
[398088511,1765363864159,-1162.0,0.00014371,2]
[398088512,1765363864168,-500.0,0.00014371,2]
[398088513,1765363864178,-166.66,0.00014384,2]
[398088514,1765363864187,-587.0,0.00014408,2]
[398088515,1765363864197,-1606.0,0.00014429,2]
[398088516,1765363864206,-1323.0,0.00014429,2]
[398088517,1765363864215,-614.0,0.00014429,2]
[398088518,1765363864224,-4763.0,0.00014429,2]
[398088519,1765363864234,-1214.517,0.00014429,2]
[398088520,1765363864243,-478.0,0.00014446,2]
[398088521,1765363864253,-2351.0,0.00014465,2]
[398088522,1765363864262,-150.0,0.00014486,2]
[398088523,1765363864272,-1162.0,0.00014508,2]
[398088524,1765363864281,-500.0,0.00014508,2]
[398088525,1765363864291,-855.68,0.00014513,2]
[398088526,1765363864300,-500.0,0.00014519,2]
[398088527,1765363864310,-1000.0,0.00014519,2]
[398088528,1765363864319,-353.58832505,0.0001452,2]
[398088529,1765363864329,-151.0,0.0001452,2]
[398088530,1765363864339,-185.4586845,0.0001452,2]
[398088531,1765363864349,-500.0,0.0001452,2]
[398088532,1765363864359,-549.83454929,0.0001452,2]
[398088533,1765363864369,-500.0,0.0001452,2]
[398088534,1765363864379,-500.0,0.0001452,2]
[398088535,1765363864390,-500.0,0.0001452,2]
[398088536,1765363864401,-500.0,0.0001452,2]
[398088537,1765363864411,-512.50205153,0.0001452,2]
[398088538,1765363864421,-500.0,0.0001452,2]
[398088539,1765363864431,-947.85,0.0001452,2]
[398088540,1765363864442,-500.0,0.0001452,2]
[398088541,1765363864454,-500.0,0.0001452,2]
[398088542,1765363864468,-500.0,0.0001452,2]
[398088543,1765363864481,-500.0,0.0001452,2]
[398088544,1765363864494,-500.0,0.0001452,2]
[398088545,1765363864507,-500.0,0.0001452,2]
[398088546,1765363864518,-500.0,0.0001452,2]
[398088547,1765363864529,-451.04296356,0.0001452,2]
[398088548,1765363864540,-500.0,0.0001452,2]
[398088549,1765363864551,-500.0,0.0001452,2]
[398088550,1765363864561,-500.0,0.0001452,2]
[398088551,1765363864572,-500.0,0.0001452,2]
[398088552,1765363864583,-587.0,0.0001452,2]
[398088553,1765363864595,-500.0,0.0001452,2]
[398088554,1765363864606,-500.0,0.0001452,2]
[398088555,1765363864616,-500.0,0.0001452,2]
[398088556,1765363864628,-500.0,0.0001452,2]
[398088557,1765363864638,-500.0,0.0001452,2]
[398088558,1765363864649,-292.38241772,0.0001452,2]
[398088559,1765363864660,-500.0,0.0001452,2]
[398088560,1765363864671,-501.33,0.0001452,2]
[398088561,1765363864681,-496.13881048,0.0001452,2]
[398088562,1765363864692,-500.0,0.0001452,2]
[398088563,1765363864703,-500.0,0.0001452,2]
[398088564,1765363864715,-500.0,0.0001452,2]
[398088565,1765363864726,-576.82,0.0001452,2]
[398088566,1765363864737,-500.0,0.0001452,2]
[398088567,1765363864747,-500.0,0.0001452,2]
[398088568,1765363864761,-500.0,0.0001452,2]
[398088569,1765363864771,-500.0,0.0001452,2]
[398088570,1765363864782,-500.0,0.0001452,2]
[398088571,1765363864793,-500.0,0.0001452,2]
[398088572,1765363864805,-282.08693707,0.0001452,2]
[398088573,1765363864816,-500.0,0.0001452,2]
[398088574,1765363864827,-500.0,0.0001452,2]
[398088575,1765363864838,-532.94,0.0001452,2]
[398088576,1765363864850,-526.76,0.0001452,2]
[398088577,1765363864860,-685.62,0.0001452,2]
[398088578,1765363864871,-500.0,0.0001452,2]
[398088579,1765363864883,-500.0,0.0001452,2]
[398088580,1765363864894,-500.0,0.0001452,2]
[398088581,1765363864906,-778.96,0.0001452,2]
[398088582,1765363864916,-500.0,0.0001452,2]
[398088583,1765363864927,-274.62807433,0.0001452,2]
[398088584,1765363864938,-500.0,0.0001452,2]
[398088585,1765363864948,-500.0,0.0001452,2]
[398088586,1765363865124,-500.0,0.0001452,2]
[398088587,1765363865144,-500.0,0.0001452,2]
[398088588,1765363865155,-594.25,0.0001452,2]
[398088589,1765363865166,-500.0,0.0001452,2]
[398088590,1765363865175,-500.0,0.0001452,2]
[398088591,1765363865185,-695.24,0.0001452,2]
[398088592,1765363865195,-500.0,0.0001452,2]
[398088593,1765363865205,-500.0,0.0001452,2]
[398088594,1765363865215,-500.0,0.0001452,2]
[398088595,1765363865225,-500.0,0.0001452,2]
[398088596,1765363865235,-500.0,0.0001452,2]
[398088597,1765363865246,-500.0,0.0001452,2]
[398088598,1765363865256,-500.0,0.0001452,2]
[398088599,1765363865267,-571.54,0.0001452,2]
[398088600,1765363865277,-500.0,0.0001452,2]
[398088601,1765363865286,-500.0,0.0001452,2]
[398088602,1765363865296,-500.0,0.0001452,2]
[398088603,1765363865306,-500.0,0.0001452,2]
[398088604,1765363865316,-500.0,0.0001452,2]
[398088605,1765363865326,-500.0,0.0001452,2]
[398088606,1765363865335,-500.0,0.0001452,2]
[398088607,1765363865345,-500.0,0.0001452,2]
[398088608,1765363865354,-500.0,0.0001452,2]
[398088609,1765363865364,-500.0,0.0001452,2]
[398088610,1765363865374,-537.71,0.0001452,2]
[398088611,1765363865384,-500.0,0.0001452,2]
[398088612,1765363865393,-500.0,0.0001452,2]
[398088613,1765363865403,-500.0,0.0001452,2]
[398088614,1765363865412,-526.55,0.0001452,2]
[398088615,1765363865422,-622.54,0.0001452,2]
[398088616,1765363865431,-500.0,0.0001452,2]
[398088617,1765363865441,-500.0,0.0001452,2]
[398088618,1765363865451,-500.0,0.0001452,2]
[398088619,1765363865461,-569.43,0.0001452,2]
[398088620,1765363865470,-500.0,0.0001452,2]
[398088621,1765363865480,-500.0,0.0001452,2]
[398088622,1765363865490,-500.0,0.0001452,2]
[398088623,1765363865499,-614.97,0.0001452,2]
[398088624,1765363865509,-500.0,0.0001452,2]
[398088625,1765363865518,-500.0,0.0001452,2]
[398088626,1765363865528,-500.0,0.0001452,2]
[398088627,1765363865537,-500.0,0.0001452,2]
[398088628,1765363865547,-500.0,0.0001452,2]
[398088629,1765363865556,-500.0,0.0001452,2]
[398088630,1765363865565,-500.0,0.0001452,2]
[398088631,1765363865574,-500.0,0.0001452,2]
[398088632,1765363865583,-500.0,0.0001452,2]
[398088633,1765363865592,-500.0,0.0001452,2]
[398088634,1765363865602,-500.0,0.0001452,2]
[398088635,1765363865611,-500.0,0.0001452,2]
[398088636,1765363865620,-500.0,0.0001452,2]
[398088637,1765363865630,-500.0,0.0001452,2]
[398088638,1765363865641,-521.75,0.0001452,2]
[398088639,1765363865650,-691.35,0.0001452,2]
[398088640,1765363865662,-500.0,0.0001452,2]
[398088641,1765363865672,-500.0,0.0001452,2]
[398088642,1765363865682,-649.49848175,0.0001452,2]
[398088643,1765363865691,-500.0,0.0001452,2]
[398088644,1765363865701,-5130.0938455,0.0001452,2]
[398088645,1765363865710,-831.61,0.0001452,2]
[398088646,1765363865720,-580.62,0.0001452,2]
[398088647,1765363865730,-607.34,0.0001452,2]
[398088648,1765363865740,-500.0,0.0001452,2]
[398088649,1765363865750,-558.66,0.0001452,2]
[398088650,1765363865760,-500.0,0.0001452,2]
[398088651,1765363865770,-500.0,0.0001452,2]
[398088652,1765363865780,-500.0,0.0001452,2]
[398088653,1765363865790,-500.0,0.0001452,2]
[398088654,1765363865801,-687.2,0.0001452,2]
[398088655,1765363865811,-545.11386166,0.0001452,2]
[398088656,1765363865821,-500.0,0.0001452,2]
[398088657,1765363865831,-697.92,0.0001452,2]
[398088658,1765363865842,-500.0,0.0001452,2]
[398088659,1765363865852,-663.24,0.0001452,2]
[398088660,1765363865861,-503.21116542,0.0001452,2]
[398088661,1765363865871,-500.0,0.0001452,2]
[398088662,1765363865881,-500.0,0.0001452,2]
[398088663,1765363865892,-500.0,0.0001452,2]
[398088664,1765363865902,-127766.8947816,0.0001452,2]
[398088665,1765363865913,-500.0,0.0001452,2]
[398088666,1765363865924,-632.86,0.0001452,2]
[398088667,1765363865935,-500.0,0.0001452,2]
[398088668,1765363865945,-500.0,0.0001452,2]
[398088669,1765363865957,-516.81,0.0001452,2]
[398088670,1765363865969,-500.0,0.0001452,2]
[398088671,1765363865980,-528.53,0.0001452,2]
[398088672,1765363865990,-239.73,0.0001452,2]
[398088673,1765363866002,-500.0,0.0001452,2]
[398088674,1765363866013,-500.0,0.0001452,2]
[398088675,1765363866023,-500.0,0.0001452,2]
[398088676,1765363866032,-588.94,0.0001452,2]
[398088677,1765363866043,-446.55234481,0.0001452,2]
[398088678,1765363866052,-575.19,0.0001452,2]
[398088679,1765363866063,-550.51,0.0001452,2]
[398088680,1765363866072,-520.64,0.0001452,2]
[398088681,1765363866082,-500.0,0.0001452,2]
[398088682,1765363866091,-500.0,0.0001452,2]
[398088683,1765363866102,-1386.52,0.0001452,2]
[398088684,1765363866112,-500.0,0.0001452,2]
[398088685,1765363866122,-500.0,0.0001452,2]
[398088686,1765363866132,-500.0,0.0001452,2]
[398088687,1765363866141,-26003.2029314,0.0001452,2]
[398088688,1765363866151,-626.72,0.0001452,2]
[398088689,1765363866162,-540.35,0.0001452,2]
[398088690,1765363866172,-500.0,0.0001452,2]
[398088691,1765363866181,-500.0,0.0001452,2]
[398088692,1765363866191,-500.0,0.0001452,2]
[398088693,1765363866201,-500.0,0.0001452,2]
[398088694,1765363866211,-500.0,0.0001452,2]
[398088695,1765363866220,-500.0,0.0001452,2]
[398088696,1765363866231,-500.0,0.0001452,2]
[398088697,1765363866241,-500.0,0.0001452,2]
[398088698,1765363866252,-1096.94,0.0001452,2]
[398088699,1765363866262,-308.54320964,0.0001452,2]
[398088700,1765363866272,-547.45,0.0001452,2]
[398088701,1765363866281,-1026.31,0.0001452,2]
[398088702,1765363866291,-500.0,0.0001452,2]
[398088703,1765363866300,-500.0,0.0001452,2]
[398088704,1765363866311,-500.0,0.0001452,2]
[398088705,1765363866320,-500.0,0.0001452,2]
[398088706,1765363866330,-500.0,0.0001452,2]
[398088707,1765363866339,-500.0,0.0001452,2]
[398088708,1765363866349,-851.24,0.0001452,2]
[398088709,1765363866359,-414.04932068,0.0001452,2]
[398088710,1765363866369,-504.48,0.0001452,2]
[398088711,1765363866380,-500.0,0.0001452,2]
[398088712,1765363866391,-500.0,0.0001452,2]
[398088713,1765363866400,-500.0,0.0001452,2]
[398088714,1765363866411,-532.01386225,0.0001452,2]
[398088715,1765363866421,-500.0,0.0001452,2]
[398088716,1765363866430,-500.0,0.0001452,2]
[398088717,1765363866441,-500.0,0.0001452,2]
[398088718,1765363866452,-500.0,0.0001452,2]
[398088719,1765363866462,-522.11,0.0001452,2]
[398088720,1765363866474,-500.0,0.0001452,2]
[398088721,1765363866484,-500.0,0.0001452,2]
[398088722,1765363866495,-500.0,0.0001452,2]
[398088723,1765363866506,-500.0,0.0001452,2]
[398088724,1765363866516,-610.27,0.0001452,2]
[398088725,1765363866526,-687.03,0.0001452,2]
[398088726,1765363866537,-500.0,0.0001452,2]
[398088727,1765363866549,-500.0,0.0001452,2]
[398088728,1765363866559,-500.0,0.0001452,2]
[398088729,1765363866570,-500.0,0.0001452,2]
[398088730,1765363866580,-500.0,0.0001452,2]
[398088731,1765363866591,-500.0,0.0001452,2]
[398088732,1765363866602,-659.53,0.0001452,2]
[398088733,1765363866613,-177.48056501,0.0001452,2]
[398088734,1765363866624,-1423.99,0.0001452,2]
[398088735,1765363866636,-605.66,0.0001452,2]
[398088736,1765363866648,-500.0,0.0001452,2]
[398088737,1765363866659,-500.0,0.0001452,2]
[398088738,1765363866671,-535.23,0.0001452,2]
[398088739,1765363866683,-500.0,0.0001452,2]
[398088740,1765363866694,-519.55664773,0.0001452,2]
[398088741,1765363866704,-500.0,0.0001452,2]
[398088742,1765363866714,-500.0,0.0001452,2]
[398088743,1765363866724,-500.0,0.0001452,2]
[398088744,1765363866735,-943.64,0.0001452,2]
[398088745,1765363866745,-500.0,0.0001452,2]
[398088746,1765363866755,-605.73,0.0001452,2]
[398088747,1765363866765,-500.0,0.0001452,2]
[398088748,1765363866775,-500.0,0.0001452,2]
[398088749,1765363866786,-694.43,0.0001452,2]
[398088750,1765363866800,-462.90959116,0.0001452,2]
[398088751,1765363866819,-500.0,0.0001452,2]
[398088752,1765363866829,-534.57,0.0001452,2]
[398088753,1765363866840,-364.40378755,0.0001452,2]
[398088754,1765363866851,-10031.1262903,0.0001452,2]
[398088755,1765363866862,-500.0,0.0001452,2]
[398088756,1765363866872,-500.0,0.0001452,2]
[398088757,1765363866885,-488.93531229,0.0001452,2]
[398088758,1765363866895,-637.14,0.0001452,2]
[398088759,1765363866907,-500.0,0.0001452,2]
[398088760,1765363866917,-500.0,0.0001452,2]
[398088761,1765363866928,-500.0,0.0001452,2]
[398088762,1765363866938,-500.0,0.0001452,2]
[398088763,1765363866949,-500.0,0.0001452,2]
[398088764,1765363866962,-500.0,0.0001452,2]
[398088765,1765363866972,-582.37339086,0.0001452,2]
[398088766,1765363866984,-1035.09,0.0001452,2]
[398088767,1765363866995,-500.0,0.0001452,2]
[398088768,1765363867005,-638.9,0.0001452,2]
[398088769,1765363867017,-500.0,0.0001452,2]
[398088770,1765363867029,-500.0,0.0001452,2]
[398088771,1765363867042,-590.56,0.0001452,2]
[398088772,1765363867052,-500.0,0.0001452,2]
[398088773,1765363867063,-500.0,0.0001452,2]
[398088774,1765363867075,-500.0,0.0001452,2]
[398088775,1765363867087,-823.36,0.0001452,2]
[398088776,1765363867098,-500.0,0.0001452,2]
[398088777,1765363867109,-500.0,0.0001452,2]
[398088778,1765363867122,-610.31,0.0001452,2]
[398088779,1765363867134,-500.0,0.0001452,2]
[398088780,1765363867148,-500.0,0.0001452,2]
[398088781,1765363867160,-500.0,0.0001452,2]
[398088782,1765363867172,-509.49293648,0.0001452,2]
[398088783,1765363867182,-500.0,0.0001452,2]
[398088784,1765363867193,-500.0,0.0001452,2]
[398088785,1765363867204,-500.0,0.0001452,2]
[398088786,1765363867214,-620.79,0.0001452,2]
[398088787,1765363867225,-500.0,0.0001452,2]
[398088788,1765363867235,-888.67,0.0001452,2]
[398088789,1765363867245,-500.0,0.0001452,2]
[398088790,1765363867255,-151.0,0.0001452,2]
[398088791,1765363867268,-500.0,0.0001452,2]
[398088792,1765363867278,-500.0,0.0001452,2]
[398088793,1765363867288,-500.0,0.0001452,2]
[398088794,1765363867297,-601.0,0.0001452,2]
[398088795,1765363867307,-500.0,0.0001452,2]
[398088796,1765363867317,-500.0,0.0001452,2]
[398088797,1765363867327,-619.05,0.0001452,2]